[Event "Titled Tuesday Blitz March 07 Early 2023"]
[White "Sokac, Marko"]
[Black "Wagner, Dennis"]
[WhiteFideId "14531356"]
[BlackFideId "24650684"]
[WhiteElo "2355"]
[BlackElo "2470"]
[Result "0-1"]
[Round "05"]
[TimeControl "180+2"]
[Date "2023.03.07"]
[WhiteClock "0:00:03"]
[BlackClock "0:00:10"]

1. e4 {[%clk 0:03:00]}  c5 {[%clk 0:03:00]} 2. a3 {[%clk 0:03:00]}  g6 {[%clk 0:02:59]} 3. h4 {[%clk 0:03:00]}  h6 {[%clk 0:02:42]} 4. h5 {[%clk 0:02:57]}  g5 {[%clk 0:02:42]} 5. d4 {[%clk 0:02:56]}  cxd4 {[%clk 0:02:32]} 6. Qxd4 {[%clk 0:02:57]}  Nf6 {[%clk 0:02:32]} 7. Nc3 {[%clk 0:02:26]}  Nc6 {[%clk 0:02:32]} 8. Qd1 {[%clk 0:02:05]}  d6 {[%clk 0:02:29]} 9. Nf3 {[%clk 0:01:58]}  Bg4 {[%clk 0:02:27]} 10. Nd5 {[%clk 0:01:49]}  Nxe4 {[%clk 0:01:55]} 11. Bd3 {[%clk 0:01:40]}  Nc5 {[%clk 0:01:52]} 12. Be3 {[%clk 0:01:20]}  Nxd3+ {[%clk 0:01:47]} 13. Qxd3 {[%clk 0:01:21]}  e6 {[%clk 0:01:11]} 14. Bd4 {[%clk 0:01:06]}  Nxd4 {[%clk 0:01:08]} 15. Qxd4 {[%clk 0:01:07]}  Qa5+ {[%clk 0:01:07]} 16. Nc3 {[%clk 0:01:01]}  Bxf3 {[%clk 0:00:59]} 17. Qxh8 {[%clk 0:00:54]}  Bxg2 {[%clk 0:00:58]} 18. Rg1 {[%clk 0:00:50]}  Bf3 {[%clk 0:00:56]} 19. Rg3 {[%clk 0:00:27]}  Bxh5 {[%clk 0:00:49]} 20. Qd4 {[%clk 0:00:17]}  O-O-O {[%clk 0:00:36]} 21. b4 {[%clk 0:00:17]}  Qa6 {[%clk 0:00:27]} 22. b5 {[%clk 0:00:15]}  Qa5 {[%clk 0:00:27]} 23. Kf1 {[%clk 0:00:13]}  d5 {[%clk 0:00:20]} 24. Ne2 {[%clk 0:00:07]}  Qxb5 {[%clk 0:00:17]} 25. Rd3 {[%clk 0:00:07]}  Bc5 {[%clk 0:00:16]} 26. Qf6 {[%clk 0:00:06]}  Rd7 {[%clk 0:00:14]} 27. Qh8+ {[%clk 0:00:06]}  Kc7 {[%clk 0:00:14]} 28. Qxh6 {[%clk 0:00:06]}  Bxe2+ {[%clk 0:00:13]} 29. Kxe2 {[%clk 0:00:07]}  e5 {[%clk 0:00:11]} 30. Kd2 {[%clk 0:00:07]}  e4 {[%clk 0:00:10]} 31. Rg3 {[%clk 0:00:03]}  Bxf2 {[%clk 0:00:10]} 0-1


[Site "https://www.chess.com"]

[Event "Titled Tuesday Blitz March 07 Early 2023"]
[White "Walentukiewicz, Michal"]
[Black "Kowalczyk, Pawel"]
[WhiteFideId "1126903"]
[BlackFideId "1130641"]
[WhiteElo "2028"]
[BlackElo "2324"]
[Result "1-0"]
[Round "05"]
[TimeControl "180+2"]
[Date "2023.03.07"]
[WhiteClock "0:01:03"]
[BlackClock "0:00:44"]

1. g3 {[%clk 0:03:00]}  g6 {[%clk 0:02:59]} 2. Bg2 {[%clk 0:03:00]}  Bg7 {[%clk 0:02:59]} 3. e4 {[%clk 0:03:00]}  c5 {[%clk 0:02:59]} 4. Nc3 {[%clk 0:02:59]}  Nc6 {[%clk 0:02:59]} 5. d3 {[%clk 0:03:00]}  d6 {[%clk 0:03:00]} 6. Be3 {[%clk 0:02:59]}  e6 {[%clk 0:02:58]} 7. Qd2 {[%clk 0:02:58]}  h6 {[%clk 0:02:56]} 8. Nge2 {[%clk 0:02:57]}  Nd4 {[%clk 0:02:55]} 9. Nd1 {[%clk 0:02:56]}  Ne7 {[%clk 0:02:53]} 10. c3 {[%clk 0:02:56]}  Nxe2 {[%clk 0:02:53]} 11. Qxe2 {[%clk 0:02:56]}  O-O {[%clk 0:02:51]} 12. h4 {[%clk 0:02:51]}  Rb8 {[%clk 0:02:44]} 13. Qd2 {[%clk 0:02:47]}  Kh7 {[%clk 0:02:43]} 14. f4 {[%clk 0:02:44]}  f5 {[%clk 0:02:41]} 15. h5 {[%clk 0:02:41]}  b6 {[%clk 0:02:38]} 16. hxg6+ {[%clk 0:02:38]}  Nxg6 {[%clk 0:02:37]} 17. Nf2 {[%clk 0:02:35]}  d5 {[%clk 0:02:37]} 18. Qe2 {[%clk 0:02:32]}  d4 {[%clk 0:02:36]} 19. cxd4 {[%clk 0:02:30]}  cxd4 {[%clk 0:02:36]} 20. Bd2 {[%clk 0:02:30]}  Ba6 {[%clk 0:02:33]} 21. O-O-O {[%clk 0:02:27]}  Qd7 {[%clk 0:02:28]} 22. Kb1 {[%clk 0:02:24]}  Rfc8 {[%clk 0:02:28]} 23. g4 {[%clk 0:02:17]}  Rc5 {[%clk 0:02:23]} 24. exf5 {[%clk 0:02:04]}  exf5 {[%clk 0:02:21]} 25. gxf5 {[%clk 0:02:00]}  Rxf5 {[%clk 0:02:20]} 26. Be4 {[%clk 0:01:57]}  Rbf8 {[%clk 0:02:19]} 27. Rdg1 {[%clk 0:01:54]}  Qe6 {[%clk 0:02:15]} 28. Ng4 {[%clk 0:01:49]}  Bb7 {[%clk 0:02:08]} 29. Nxh6 {[%clk 0:01:40]}  Bxh6 {[%clk 0:01:59]} 30. Qh2 {[%clk 0:01:36]}  Ne7 {[%clk 0:01:48]} 31. Bxb7 {[%clk 0:01:33]}  R8f6 {[%clk 0:01:28]} 32. Be4 {[%clk 0:01:28]}  Qf7 {[%clk 0:01:16]} 33. Qh5 {[%clk 0:01:20]}  Qf8 {[%clk 0:01:03]} 34. Bb4 {[%clk 0:01:14]}  Kh8 {[%clk 0:00:44]} 35. Bxf5 {[%clk 0:01:03]} 1-0


[Site "https://www.chess.com"]

[Event "Titled Tuesday Blitz March 07 Early 2023"]
[White "Klabis, Rokas"]
[Black "Gonzalez, Francisco Silva"]
[WhiteFideId "12805246"]
[BlackFideId "1512285"]
[WhiteElo "2288"]
[BlackElo "2074"]
[Result "1-0"]
[Round "05"]
[TimeControl "180+2"]
[Date "2023.03.07"]
[WhiteClock "0:00:52"]
[BlackClock "0:00:32"]

1. e4 {[%clk 0:03:00]}  e5 {[%clk 0:02:50]} 2. Nf3 {[%clk 0:03:00]}  Nc6 {[%clk 0:02:50]} 3. Bc4 {[%clk 0:03:00]}  Bc5 {[%clk 0:02:49]} 4. O-O {[%clk 0:03:00]}  Nf6 {[%clk 0:02:50]} 5. d3 {[%clk 0:03:00]}  d6 {[%clk 0:02:49]} 6. c3 {[%clk 0:03:00]}  a6 {[%clk 0:02:49]} 7. Bb3 {[%clk 0:02:56]}  Ba7 {[%clk 0:02:48]} 8. Nbd2 {[%clk 0:02:52]}  h6 {[%clk 0:02:45]} 9. Nc4 {[%clk 0:02:50]}  Ne7 {[%clk 0:02:42]} 10. Be3 {[%clk 0:02:50]}  b5 {[%clk 0:02:42]} 11. Ncd2 {[%clk 0:02:49]}  c5 {[%clk 0:02:40]} 12. a4 {[%clk 0:02:48]}  Bd7 {[%clk 0:02:39]} 13. Qe2 {[%clk 0:02:41]}  Bb6 {[%clk 0:02:38]} 14. d4 {[%clk 0:02:31]}  c4 {[%clk 0:02:37]} 15. Bc2 {[%clk 0:02:31]}  Ng6 {[%clk 0:02:35]} 16. axb5 {[%clk 0:02:29]}  axb5 {[%clk 0:02:33]} 17. Rxa8 {[%clk 0:02:29]}  Qxa8 {[%clk 0:02:33]} 18. dxe5 {[%clk 0:02:29]}  Bxe3 {[%clk 0:02:33]} 19. Qxe3 {[%clk 0:02:27]}  Nxe5 {[%clk 0:02:26]} 20. Nxe5 {[%clk 0:02:27]}  dxe5 {[%clk 0:02:26]} 21. Qc5 {[%clk 0:02:27]}  Qb8 {[%clk 0:02:26]} 22. f4 {[%clk 0:02:20]}  exf4 {[%clk 0:02:20]} 23. e5 {[%clk 0:02:21]}  Ng4 {[%clk 0:02:11]} 24. Rxf4 {[%clk 0:02:10]}  Nxe5 {[%clk 0:02:09]} 25. Ne4 {[%clk 0:02:06]}  Kd8 {[%clk 0:01:53]} 26. Nd6 {[%clk 0:02:01]}  f6 {[%clk 0:01:52]} 27. Rd4 {[%clk 0:01:58]}  Qc7 {[%clk 0:01:43]} 28. Qa3 {[%clk 0:01:51]}  Qb8 {[%clk 0:01:30]} 29. Bf5 {[%clk 0:01:48]}  Kc7 {[%clk 0:01:27]} 30. Bxd7 {[%clk 0:01:33]}  Nxd7 {[%clk 0:01:27]} 31. Nf7 {[%clk 0:01:27]}  Rd8 {[%clk 0:01:07]} 32. Qd6+ {[%clk 0:01:25]}  Kc8 {[%clk 0:01:07]} 33. Qc6+ {[%clk 0:01:06]}  Qc7 {[%clk 0:01:06]} 34. Qa8+ {[%clk 0:01:06]}  Qb8 {[%clk 0:01:01]} 35. Qxb8+ {[%clk 0:01:06]}  Kxb8 {[%clk 0:00:59]} 36. Nxd8 {[%clk 0:01:06]}  Ne5 {[%clk 0:00:58]} 37. Ne6 {[%clk 0:01:05]}  g5 {[%clk 0:00:58]} 38. Rd5 {[%clk 0:01:02]}  Kb7 {[%clk 0:00:54]} 39. Nd4 {[%clk 0:01:01]}  b4 {[%clk 0:00:53]} 40. Rb5+ {[%clk 0:01:01]}  Kc7 {[%clk 0:00:54]} 41. Rxb4 {[%clk 0:01:01]}  h5 {[%clk 0:00:51]} 42. Ra4 {[%clk 0:01:00]}  Nd3 {[%clk 0:00:51]} 43. Ra6 {[%clk 0:01:00]}  Nxb2 {[%clk 0:00:47]} 44. Rxf6 {[%clk 0:01:00]}  Nd1 {[%clk 0:00:47]} 45. Rc6+ {[%clk 0:01:00]}  Kd7 {[%clk 0:00:46]} 46. Rxc4 {[%clk 0:01:01]}  Kd6 {[%clk 0:00:46]} 47. Rc8 {[%clk 0:00:59]}  Ke5 {[%clk 0:00:46]} 48. Nf3+ {[%clk 0:00:59]}  Kf4 {[%clk 0:00:47]} 49. c4 {[%clk 0:00:58]}  g4 {[%clk 0:00:46]} 50. Ne1 {[%clk 0:00:56]}  Ke5 {[%clk 0:00:45]} 51. c5 {[%clk 0:00:56]}  Nc3 {[%clk 0:00:45]} 52. Rh8 {[%clk 0:00:56]}  Ne2+ {[%clk 0:00:42]} 53. Kf1 {[%clk 0:00:56]}  Nf4 {[%clk 0:00:42]} 54. g3 {[%clk 0:00:55]}  Ne6 {[%clk 0:00:41]} 55. Rxh5+ {[%clk 0:00:55]}  Ke4 {[%clk 0:00:39]} 56. c6 {[%clk 0:00:54]}  Ng7 {[%clk 0:00:38]} 57. Rg5 {[%clk 0:00:53]}  Ne6 {[%clk 0:00:34]} 58. Rxg4+ {[%clk 0:00:53]}  Kd5 {[%clk 0:00:34]} 59. Rg6 {[%clk 0:00:53]}  Nf4 {[%clk 0:00:32]} 60. gxf4 {[%clk 0:00:52]}  Ke4 {[%clk 0:00:32]} 61. c7 {[%clk 0:00:52]} 1-0


[Site "https://www.chess.com"]

[Event "Titled Tuesday Blitz March 07 Early 2023"]
[White "Goltsev, Dmitry"]
[Black "Ozen, Bahadir"]
[WhiteFideId "24176710"]
[BlackFideId "6337058"]
[WhiteElo "2336"]
[BlackElo "2503"]
[Result "1/2-1/2"]
[Round "05"]
[TimeControl "180+2"]
[Date "2023.03.07"]
[WhiteClock "0:00:38"]
[BlackClock "0:00:20"]

1. e4 {[%clk 0:03:00]}  e5 {[%clk 0:02:59]} 2. Nf3 {[%clk 0:03:00]}  Nc6 {[%clk 0:02:59]} 3. Bb5 {[%clk 0:03:00]}  Nf6 {[%clk 0:02:58]} 4. O-O {[%clk 0:03:00]}  Nxe4 {[%clk 0:02:58]} 5. d4 {[%clk 0:03:00]}  Nd6 {[%clk 0:02:58]} 6. Bxc6 {[%clk 0:03:00]}  dxc6 {[%clk 0:02:59]} 7. dxe5 {[%clk 0:03:01]}  Nf5 {[%clk 0:02:59]} 8. Qxd8+ {[%clk 0:03:02]}  Kxd8 {[%clk 0:03:00]} 9. Rd1+ {[%clk 0:03:03]}  Bd7 {[%clk 0:03:00]} 10. Bg5+ {[%clk 0:03:04]}  Kc8 {[%clk 0:02:32]} 11. Nc3 {[%clk 0:03:03]}  h6 {[%clk 0:02:31]} 12. Bf4 {[%clk 0:03:02]}  Be7 {[%clk 0:02:24]} 13. Ne4 {[%clk 0:02:59]}  Be6 {[%clk 0:02:05]} 14. b3 {[%clk 0:02:58]}  b6 {[%clk 0:02:05]} 15. c4 {[%clk 0:02:58]}  Kb7 {[%clk 0:02:02]} 16. h3 {[%clk 0:02:53]}  Rad8 {[%clk 0:01:49]} 17. g4 {[%clk 0:02:53]}  Nh4 {[%clk 0:01:49]} 18. Nxh4 {[%clk 0:02:52]}  Bxh4 {[%clk 0:01:49]} 19. Bg3 {[%clk 0:02:53]}  Be7 {[%clk 0:01:34]} 20. f4 {[%clk 0:02:53]}  g6 {[%clk 0:01:34]} 21. Nf6 {[%clk 0:02:36]}  Bxf6 {[%clk 0:01:29]} 22. exf6 {[%clk 0:02:37]}  c5 {[%clk 0:01:26]} 23. Kf2 {[%clk 0:02:36]}  a5 {[%clk 0:01:26]} 24. Rxd8 {[%clk 0:02:33]}  Rxd8 {[%clk 0:01:25]} 25. Ke2 {[%clk 0:02:34]}  Rh8 {[%clk 0:01:10]} 26. Rh1 {[%clk 0:02:28]}  h5 {[%clk 0:01:09]} 27. f5 {[%clk 0:02:28]}  gxf5 {[%clk 0:01:09]} 28. g5 {[%clk 0:02:26]}  f4 {[%clk 0:00:58]} 29. Bxf4 {[%clk 0:02:26]}  h4 {[%clk 0:00:59]} 30. Kf3 {[%clk 0:02:18]}  Bf5 {[%clk 0:00:58]} 31. Re1 {[%clk 0:02:18]}  Rd8 {[%clk 0:00:43]} 32. Re7 {[%clk 0:02:14]}  Bg6 {[%clk 0:00:41]} 33. Rxc7+ {[%clk 0:02:10]}  Ka6 {[%clk 0:00:41]} 34. Re7 {[%clk 0:02:02]}  a4 {[%clk 0:00:37]} 35. bxa4 {[%clk 0:01:30]}  Bh5+ {[%clk 0:00:22]} 36. Kf2 {[%clk 0:01:05]}  Ka5 {[%clk 0:00:17]} 37. a3 {[%clk 0:00:52]}  Kxa4 {[%clk 0:00:15]} 38. Bc7 {[%clk 0:00:52]}  Rd3 {[%clk 0:00:09]} 39. Bxb6 {[%clk 0:00:51]}  Kxa3 {[%clk 0:00:09]} 40. Bxc5+ {[%clk 0:00:51]}  Kb3 {[%clk 0:00:09]} 41. Re3 {[%clk 0:00:38]}  Kxc4 {[%clk 0:00:10]} 42. Rxd3 {[%clk 0:00:37]}  Kxd3 {[%clk 0:00:11]} 43. Kg2 {[%clk 0:00:35]}  Ke4 {[%clk 0:00:10]} 44. Bf2 {[%clk 0:00:34]}  Kf5 {[%clk 0:00:11]} 45. Bxh4 {[%clk 0:00:35]}  Kg6 {[%clk 0:00:11]} 46. Kg3 {[%clk 0:00:35]}  Bd1 {[%clk 0:00:11]} 47. Kf4 {[%clk 0:00:35]}  Bh5 {[%clk 0:00:12]} 48. Bf2 {[%clk 0:00:35]}  Bd1 {[%clk 0:00:13]} 49. h4 {[%clk 0:00:35]}  Bh5 {[%clk 0:00:14]} 50. Ke3 {[%clk 0:00:35]}  Bd1 {[%clk 0:00:15]} 51. Bg3 {[%clk 0:00:35]}  Bh5 {[%clk 0:00:15]} 52. Kd2 {[%clk 0:00:36]}  Bg4 {[%clk 0:00:16]} 53. Be1 {[%clk 0:00:36]}  Bh5 {[%clk 0:00:17]} 54. Ke3 {[%clk 0:00:36]}  Bg4 {[%clk 0:00:18]} 55. Bf2 {[%clk 0:00:37]}  Bh5 {[%clk 0:00:19]} 56. Kf4 {[%clk 0:00:37]}  Be2 {[%clk 0:00:19]} 57. Bc5 {[%clk 0:00:38]}  Bh5 {[%clk 0:00:20]} 1/2-1/2


[Site "https://www.chess.com"]

[Event "Titled Tuesday Blitz March 07 Early 2023"]
[White "Yang,ching Wei, Austin"]
[Black "Andreev, Konstantin"]
[WhiteFideId "16300440"]
[BlackFideId "24239305"]
[WhiteElo "2101"]
[BlackElo "2106"]
[Result "0-1"]
[Round "05"]
[TimeControl "180+2"]
[Date "2023.03.07"]
[WhiteClock "0:00:01"]
[BlackClock "0:00:07"]

1. e4 {[%clk 0:03:00]}  c5 {[%clk 0:02:57]} 2. Nf3 {[%clk 0:03:00]}  e6 {[%clk 0:02:56]} 3. d4 {[%clk 0:02:58]}  cxd4 {[%clk 0:02:57]} 4. Nxd4 {[%clk 0:02:58]}  Nc6 {[%clk 0:02:58]} 5. Nc3 {[%clk 0:02:57]}  Qc7 {[%clk 0:02:58]} 6. Be2 {[%clk 0:02:52]}  a6 {[%clk 0:02:58]} 7. O-O {[%clk 0:02:52]}  Nf6 {[%clk 0:02:59]} 8. a3 {[%clk 0:02:46]}  Be7 {[%clk 0:02:57]} 9. Be3 {[%clk 0:02:46]}  b5 {[%clk 0:02:56]} 10. f4 {[%clk 0:02:43]}  d6 {[%clk 0:02:55]} 11. Kh1 {[%clk 0:02:43]}  Bb7 {[%clk 0:02:55]} 12. Bf3 {[%clk 0:02:38]}  Nxd4 {[%clk 0:02:54]} 13. Bxd4 {[%clk 0:02:38]}  e5 {[%clk 0:02:55]} 14. Be3 {[%clk 0:02:35]}  O-O {[%clk 0:02:54]} 15. Qe1 {[%clk 0:02:29]}  Nd7 {[%clk 0:02:51]} 16. Rd1 {[%clk 0:02:26]}  exf4 {[%clk 0:02:50]} 17. Bxf4 {[%clk 0:02:26]}  Ne5 {[%clk 0:02:50]} 18. Qg3 {[%clk 0:02:10]}  Kh8 {[%clk 0:02:48]} 19. Be2 {[%clk 0:01:59]}  Bf6 {[%clk 0:02:43]} 20. Bg5 {[%clk 0:01:36]}  Bxg5 {[%clk 0:02:40]} 21. Qxg5 {[%clk 0:01:37]}  Rac8 {[%clk 0:02:38]} 22. Rf4 {[%clk 0:01:28]}  h6 {[%clk 0:02:17]} 23. Qg3 {[%clk 0:01:16]}  Qc5 {[%clk 0:01:59]} 24. Rdf1 {[%clk 0:00:58]}  b4 {[%clk 0:01:53]} 25. axb4 {[%clk 0:00:54]}  Qxb4 {[%clk 0:01:54]} 26. Nd5 {[%clk 0:00:25]}  Bxd5 {[%clk 0:01:35]} 27. exd5 {[%clk 0:00:24]}  Qxb2 {[%clk 0:01:35]} 28. Bd3 {[%clk 0:00:22]}  Nxd3 {[%clk 0:01:25]} 29. cxd3 {[%clk 0:00:23]}  Rc1 {[%clk 0:01:24]} 30. h4 {[%clk 0:00:20]}  a5 {[%clk 0:01:14]} 31. Kh2 {[%clk 0:00:19]}  Rxf1 {[%clk 0:01:11]} 32. Rxf1 {[%clk 0:00:20]}  Qb4 {[%clk 0:01:10]} 33. Rf4 {[%clk 0:00:18]}  Qc3 {[%clk 0:01:07]} 34. Rc4 {[%clk 0:00:15]}  Qf6 {[%clk 0:00:55]} 35. Rc6 {[%clk 0:00:16]}  Rd8 {[%clk 0:00:54]} 36. Ra6 {[%clk 0:00:16]}  g5 {[%clk 0:00:21]} 37. hxg5 {[%clk 0:00:11]}  hxg5 {[%clk 0:00:22]} 38. Rxa5 {[%clk 0:00:11]}  Kg7 {[%clk 0:00:22]} 39. Kg1 {[%clk 0:00:04]}  Rb8 {[%clk 0:00:19]} 40. Ra2 {[%clk 0:00:03]}  Rb1+ {[%clk 0:00:15]} 41. Kh2 {[%clk 0:00:03]}  Qh6+ {[%clk 0:00:08]} 42. Qh3 {[%clk 0:00:03]}  Qg6 {[%clk 0:00:09]} 43. Rf2 {[%clk 0:00:02]}  Rb8 {[%clk 0:00:08]} 44. Kg1 {[%clk 0:00:01]}  g4 {[%clk 0:00:07]} 0-1


[Site "https://www.chess.com"]

[Event "Titled Tuesday Blitz March 07 Early 2023"]
[White "Derix, Bernhard"]
[Black "polandchessplayer"]
[WhiteFideId "4642368"]
[WhiteElo "2582"]
[BlackElo "2772"]
[Result "0-1"]
[Round "05"]
[TimeControl "180+2"]
[Date "2023.03.07"]
[WhiteClock "0:00:15"]
[BlackClock "0:00:30"]

1. Nf3 {[%clk 0:03:00]}  Nf6 {[%clk 0:02:59]} 2. g3 {[%clk 0:03:00]}  g6 {[%clk 0:02:59]} 3. Bg2 {[%clk 0:03:01]}  Bg7 {[%clk 0:03:00]} 4. O-O {[%clk 0:03:02]}  O-O {[%clk 0:03:01]} 5. d4 {[%clk 0:03:02]}  c6 {[%clk 0:03:01]} 6. c4 {[%clk 0:03:03]}  d5 {[%clk 0:03:02]} 7. Qb3 {[%clk 0:03:02]}  a6 {[%clk 0:02:59]} 8. c5 {[%clk 0:02:39]}  Nbd7 {[%clk 0:02:58]} 9. Nc3 {[%clk 0:02:38]}  Ne4 {[%clk 0:02:53]} 10. Bf4 {[%clk 0:02:29]}  Nxc3 {[%clk 0:02:38]} 11. bxc3 {[%clk 0:02:27]}  Re8 {[%clk 0:02:37]} 12. c4 {[%clk 0:02:11]}  dxc4 {[%clk 0:02:18]} 13. Qxc4 {[%clk 0:02:07]}  e5 {[%clk 0:02:19]} 14. dxe5 {[%clk 0:02:01]}  Nxe5 {[%clk 0:02:18]} 15. Nxe5 {[%clk 0:01:57]}  Bxe5 {[%clk 0:02:19]} 16. Rad1 {[%clk 0:01:51]}  Qe7 {[%clk 0:02:19]} 17. Bxe5 {[%clk 0:01:42]}  Qxe5 {[%clk 0:02:20]} 18. e3 {[%clk 0:01:41]}  Be6 {[%clk 0:02:15]} 19. Qb4 {[%clk 0:01:33]}  Re7 {[%clk 0:02:15]} 20. Rd2 {[%clk 0:01:24]}  a5 {[%clk 0:02:08]} 21. Qb6 {[%clk 0:01:21]}  Kg7 {[%clk 0:01:59]} 22. Rc1 {[%clk 0:01:16]}  h5 {[%clk 0:01:54]} 23. h4 {[%clk 0:01:15]}  a4 {[%clk 0:01:47]} 24. a3 {[%clk 0:01:14]}  Bb3 {[%clk 0:01:44]} 25. Qb4 {[%clk 0:01:09]}  Rae8 {[%clk 0:01:25]} 26. Rc3 {[%clk 0:01:08]}  Qf5 {[%clk 0:01:20]} 27. Rcd3 {[%clk 0:01:07]}  Qe5 {[%clk 0:01:17]} 28. Rd4 {[%clk 0:01:07]}  Qf5 {[%clk 0:01:12]} 29. Qc3 {[%clk 0:01:07]}  Qf6 {[%clk 0:01:11]} 30. Qb4 {[%clk 0:00:56]}  Qe5 {[%clk 0:01:10]} 31. Rd7 {[%clk 0:00:49]}  Rxd7 {[%clk 0:00:46]} 32. Rxd7 {[%clk 0:00:50]}  Re7 {[%clk 0:00:47]} 33. Rd4 {[%clk 0:00:25]}  Qf6 {[%clk 0:00:40]} 34. Be4 {[%clk 0:00:20]}  Re5 {[%clk 0:00:36]} 35. Kg2 {[%clk 0:00:17]}  Qe7 {[%clk 0:00:36]} 36. Bf3 {[%clk 0:00:15]}  Rxc5 {[%clk 0:00:30]} 37. Qxb7 {[%clk 0:00:15]}  Qxb7 {[%clk 0:00:30]} 0-1


[Site "https://www.chess.com"]

[Event "Titled Tuesday Blitz March 07 Early 2023"]
[White "Belov, Alexei"]
[Black "Zahid, Sanatan"]
[WhiteFideId "4128206"]
[BlackFideId "10201963"]
[WhiteElo "2577"]
[BlackElo "1865"]
[Result "0-1"]
[Round "05"]
[TimeControl "180+2"]
[Date "2023.03.07"]
[WhiteClock "0:00:04"]
[BlackClock "0:01:26"]

1. e4 {[%clk 0:03:00]}  e6 {[%clk 0:03:00]} 2. d4 {[%clk 0:03:00]}  d5 {[%clk 0:03:01]} 3. Nd2 {[%clk 0:03:00]}  h6 {[%clk 0:02:59]} 4. Ngf3 {[%clk 0:02:59]}  Nf6 {[%clk 0:03:00]} 5. Bd3 {[%clk 0:02:57]}  c5 {[%clk 0:03:00]} 6. exd5 {[%clk 0:02:57]}  exd5 {[%clk 0:03:00]} 7. dxc5 {[%clk 0:02:56]}  Bxc5 {[%clk 0:03:00]} 8. O-O {[%clk 0:02:56]}  O-O {[%clk 0:03:00]} 9. Nb3 {[%clk 0:02:56]}  Bd6 {[%clk 0:02:59]} 10. Nfd4 {[%clk 0:02:52]}  Nc6 {[%clk 0:02:59]} 11. h3 {[%clk 0:02:44]}  Re8 {[%clk 0:02:58]} 12. c3 {[%clk 0:02:43]}  Bd7 {[%clk 0:02:58]} 13. Be3 {[%clk 0:02:30]}  Ne5 {[%clk 0:02:56]} 14. Nf5 {[%clk 0:02:23]}  Bf8 {[%clk 0:02:53]} 15. Bd4 {[%clk 0:02:23]}  Nxd3 {[%clk 0:02:53]} 16. Qxd3 {[%clk 0:02:22]}  Ne4 {[%clk 0:02:54]} 17. Qf3 {[%clk 0:02:05]}  Qg5 {[%clk 0:02:48]} 18. Ne3 {[%clk 0:01:45]}  Re6 {[%clk 0:02:47]} 19. Rad1 {[%clk 0:01:34]}  Rg6 {[%clk 0:02:46]} 20. Rfe1 {[%clk 0:01:23]}  Be6 {[%clk 0:02:42]} 21. Nd2 {[%clk 0:01:17]}  Bd6 {[%clk 0:02:31]} 22. Kf1 {[%clk 0:00:48]}  Nxd2+ {[%clk 0:02:22]} 23. Rxd2 {[%clk 0:00:48]}  b6 {[%clk 0:02:16]} 24. Nc2 {[%clk 0:00:39]}  Rf8 {[%clk 0:02:06]} 25. Be3 {[%clk 0:00:37]}  Qf6 {[%clk 0:01:58]} 26. Qxf6 {[%clk 0:00:36]}  Rxf6 {[%clk 0:01:59]} 27. Nd4 {[%clk 0:00:34]}  Bd7 {[%clk 0:01:58]} 28. Nc2 {[%clk 0:00:30]}  Rf5 {[%clk 0:01:52]} 29. Red1 {[%clk 0:00:29]}  Be6 {[%clk 0:01:48]} 30. Nd4 {[%clk 0:00:29]}  Rf6 {[%clk 0:01:46]} 31. Nb5 {[%clk 0:00:20]}  Bb8 {[%clk 0:01:46]} 32. Bd4 {[%clk 0:00:20]}  Rg6 {[%clk 0:01:45]} 33. Re1 {[%clk 0:00:18]}  Bd7 {[%clk 0:01:43]} 34. Na3 {[%clk 0:00:15]}  Re6 {[%clk 0:01:44]} 35. Be3 {[%clk 0:00:13]}  Bc6 {[%clk 0:01:44]} 36. Nc2 {[%clk 0:00:13]}  Ree8 {[%clk 0:01:43]} 37. Nd4 {[%clk 0:00:11]}  Bd7 {[%clk 0:01:42]} 38. Rde2 {[%clk 0:00:12]}  Re4 {[%clk 0:01:38]} 39. Bd2 {[%clk 0:00:11]}  Rfe8 {[%clk 0:01:38]} 40. f3 {[%clk 0:00:12]}  R4e5 {[%clk 0:01:29]} 41. Rxe5 {[%clk 0:00:12]}  Bxe5 {[%clk 0:01:30]} 42. Kf2 {[%clk 0:00:10]}  h5 {[%clk 0:01:28]} 43. h4 {[%clk 0:00:09]}  f6 {[%clk 0:01:28]} 44. Nb3 {[%clk 0:00:05]}  Kf7 {[%clk 0:01:27]} 45. Be3 {[%clk 0:00:05]}  g5 {[%clk 0:01:25]} 46. hxg5 {[%clk 0:00:04]}  fxg5 {[%clk 0:01:26]} 0-1


[Site "https://www.chess.com"]

[Event "Titled Tuesday Blitz March 07 Early 2023"]
[White "Girsh, Daniel"]
[Black "Pourramezanali, Amirreza"]
[WhiteFideId "30949190"]
[BlackFideId "12511412"]
[WhiteElo "2075"]
[BlackElo "2382"]
[Result "1-0"]
[Round "05"]
[TimeControl "180+2"]
[Date "2023.03.07"]
[WhiteClock "0:00:16"]
[BlackClock "0:00:06"]

1. e4 {[%clk 0:02:52]}  e6 {[%clk 0:02:59]} 2. d4 {[%clk 0:02:51]}  d5 {[%clk 0:03:00]} 3. Nc3 {[%clk 0:02:51]}  Bb4 {[%clk 0:02:59]} 4. e5 {[%clk 0:02:52]}  c5 {[%clk 0:03:00]} 5. a3 {[%clk 0:02:52]}  Bxc3+ {[%clk 0:03:00]} 6. bxc3 {[%clk 0:02:53]}  Ne7 {[%clk 0:03:00]} 7. Qg4 {[%clk 0:02:52]}  O-O {[%clk 0:03:00]} 8. Bd3 {[%clk 0:02:51]}  Nd7 {[%clk 0:03:00]} 9. Nf3 {[%clk 0:02:50]}  f5 {[%clk 0:03:00]} 10. Qg3 {[%clk 0:02:48]}  Nb6 {[%clk 0:02:48]} 11. a4 {[%clk 0:02:46]}  Qc7 {[%clk 0:02:47]} 12. O-O {[%clk 0:02:42]}  Nc4 {[%clk 0:02:41]} 13. Nd2 {[%clk 0:02:10]}  Nxd2 {[%clk 0:02:36]} 14. Bxd2 {[%clk 0:02:11]}  Bd7 {[%clk 0:02:33]} 15. a5 {[%clk 0:02:02]}  b5 {[%clk 0:02:03]} 16. dxc5 {[%clk 0:02:00]}  Qxc5 {[%clk 0:02:01]} 17. Bc1 {[%clk 0:01:36]}  Qxc3 {[%clk 0:01:48]} 18. Ra3 {[%clk 0:01:26]}  Qc7 {[%clk 0:01:45]} 19. Bd2 {[%clk 0:01:22]}  a6 {[%clk 0:01:43]} 20. Bb4 {[%clk 0:01:21]}  Rf7 {[%clk 0:01:39]} 21. Bd6 {[%clk 0:01:21]}  Qd8 {[%clk 0:01:39]} 22. Rc3 {[%clk 0:01:14]}  Rc8 {[%clk 0:01:36]} 23. Rxc8 {[%clk 0:01:12]}  Qxc8 {[%clk 0:01:36]} 24. Qe3 {[%clk 0:01:09]}  Qb7 {[%clk 0:01:21]} 25. Qb6 {[%clk 0:00:44]}  Qxb6 {[%clk 0:01:17]} 26. axb6 {[%clk 0:00:44]}  Bc8 {[%clk 0:01:17]} 27. Ra1 {[%clk 0:00:40]}  Nc6 {[%clk 0:01:17]} 28. Bxb5 {[%clk 0:00:33]}  Bb7 {[%clk 0:01:05]} 29. Bxa6 {[%clk 0:00:32]}  Bxa6 {[%clk 0:01:01]} 30. Rxa6 {[%clk 0:00:32]}  Rb7 {[%clk 0:01:01]} 31. Kf1 {[%clk 0:00:21]}  Kf7 {[%clk 0:01:00]} 32. Ke2 {[%clk 0:00:21]}  Ke8 {[%clk 0:01:00]} 33. Kd3 {[%clk 0:00:20]}  Kd7 {[%clk 0:01:00]} 34. Kc3 {[%clk 0:00:20]}  Nd8 {[%clk 0:00:54]} 35. Bc7 {[%clk 0:00:19]}  Nc6 {[%clk 0:00:32]} 36. f4 {[%clk 0:00:19]}  Ne7 {[%clk 0:00:26]} 37. Kb4 {[%clk 0:00:19]}  Kc6 {[%clk 0:00:24]} 38. Ra8 {[%clk 0:00:17]}  d4 {[%clk 0:00:25]} 39. Kc4 {[%clk 0:00:17]}  Nd5 {[%clk 0:00:24]} 40. Rc8 {[%clk 0:00:16]}  Nxf4 {[%clk 0:00:09]} 41. Kxd4 {[%clk 0:00:16]}  Nxg2 {[%clk 0:00:09]} 42. Rg8 {[%clk 0:00:15]}  Nh4 {[%clk 0:00:04]} 43. Rxg7 {[%clk 0:00:15]}  f4 {[%clk 0:00:05]} 44. Ke4 {[%clk 0:00:15]}  f3 {[%clk 0:00:05]} 45. Rf7 {[%clk 0:00:15]}  f2 {[%clk 0:00:03]} 46. Rxf2 {[%clk 0:00:15]}  Nf5 {[%clk 0:00:03]} 47. Rxf5 {[%clk 0:00:15]}  exf5+ {[%clk 0:00:04]} 48. Kxf5 {[%clk 0:00:15]}  Kd7 {[%clk 0:00:05]} 49. Kf6 {[%clk 0:00:16]}  Ke8 {[%clk 0:00:05]} 50. e6 {[%clk 0:00:16]}  h5 {[%clk 0:00:06]} 51. c4 {[%clk 0:00:16]}  h4 {[%clk 0:00:06]} 52. c5 {[%clk 0:00:16]}  h3 {[%clk 0:00:06]} 53. c6 {[%clk 0:00:17]}  Ra7 {[%clk 0:00:06]} 54. bxa7 {[%clk 0:00:16]} 1-0


[Site "https://www.chess.com"]